fUST/lending_fUST_20250302
["ID","MTS","AMOUNT","RATE_DAILY","PERIOD"]
[354959697,1740846558488,-4335.16965088,0.00022124,2]
[354959698,1740846558512,-4335.16965088,0.00022124,2]
[354959699,1740846558539,-4335.16965088,0.00022124,2]
[354959700,1740846558566,-4335.16965088,0.00022124,2]
[354959701,1740846558591,-4335.16965088,0.00022124,2]
[354959702,1740846558616,-4335.16965088,0.00022124,2]
[354959703,1740846558641,-4335.16965088,0.00022124,2]
[354959704,1740846558666,-4335.16965088,0.00022124,2]
[354959705,1740846558691,-4335.16965088,0.00022124,2]
[354959706,1740846558717,-4335.16965088,0.00022124,2]
[354959707,1740846558742,-4335.16965088,0.00022124,2]
[354959708,1740846558768,-4335.16965088,0.00022124,2]
[354959709,1740846558792,-4335.16965088,0.00022124,2]
[354959710,1740846558818,-4335.16965088,0.00022124,2]
[354959711,1740846558843,-4335.16965088,0.00022124,2]
[354959712,1740846558868,-4335.16965088,0.00022124,2]
[354959713,1740846558893,-4335.16965088,0.00022124,2]
[354959714,1740846558918,-4335.16965088,0.00022124,2]
[354959715,1740846558944,-4335.16965088,0.00022124,2]
[354959716,1740846558971,-4186.71812926,0.00022124,2]
[354959717,1740846559391,-148.45152162,0.00022124,2]
[354959718,1740846559416,-4335.16965088,0.00022124,2]
[354959719,1740846559440,-4335.16965088,0.00022124,2]
[354959720,1740846559467,-4335.16965088,0.00022124,2]
[354959721,1740846559492,-4335.16965088,0.00022124,2]
[354959722,1740846559517,-4335.16965088,0.00022124,2]
[354959723,1740846559543,-4335.16965088,0.00022124,2]
[354959724,1740846559568,-4256.34838451,0.00022124,2]
[354959725,1740846559593,-4256.34838451,0.00022124,2]
[354959726,1740846559618,-4079.51651948,0.00022124,2]
[354959727,1740846559660,-176.83186503,0.00022124,2]
[354959728,1740846559684,-4256.34838451,0.00022124,2]
[354959729,1740846559710,-4256.34838451,0.00022124,2]
[354959730,1740846559735,-4256.34838451,0.00022124,2]
[354959731,1740846559759,-4256.34838451,0.00022124,2]
[354959732,1740846559784,-4256.34838451,0.00022124,2]
[354959733,1740846559809,-4256.34838451,0.00022124,2]
[354959734,1740846559833,-4256.34838451,0.00022124,2]
[354959735,1740846559857,-4256.34838451,0.00022124,2]
[354959736,1740846559880,-4256.34838451,0.00022124,2]
[354959737,1740846559904,-4256.34838451,0.00022124,2]
[354959738,1740846559927,-4256.34838451,0.00022124,2]
[354959739,1740846559951,-4256.34838451,0.00022124,2]
[354959740,1740846559977,-4256.34838451,0.00022124,2]
[354959741,1740846560001,-4256.34838451,0.00022124,2]
[354959742,1740846560025,-4256.34838451,0.00022124,2]
[354959743,1740846560050,-4256.34838451,0.00022124,2]
[354959744,1740846560074,-4256.34838451,0.00022124,2]
[354959745,1740846560099,-4256.34838451,0.00022124,2]
[354959746,1740846560123,-4256.34838451,0.00022124,2]
[354959747,1740846560144,-500.0,0.00022127,2]
[354959748,1740846560166,-49427.5617639,0.00022128,2]
[354959749,1740846560187,-254.57355322,0.0002256,2]
[354959750,1740846560210,-500.0,0.0002256,2]
[354959751,1740846560233,-258.51742635,0.0002256,2]
[354959752,1740846560254,-500.0,0.0002256,2]
[354959753,1740846560277,-500.0,0.0002256,2]
[354959754,1740846560298,-500.0,0.0002256,2]
[354959755,1740846560320,-500.0,0.0002256,2]
[354959756,1740846560341,-500.0,0.0002256,2]
[354959757,1740846560362,-500.0,0.0002256,2]
[354959758,1740846560383,-500.0,0.0002256,2]
[354959759,1740846560743,-500.0,0.0002256,2]
[354959760,1740846560766,-500.0,0.0002256,2]
[354959761,1740846560786,-500.0,0.0002256,2]
[354959762,1740846560808,-500.0,0.0002256,2]
[354959763,1740846560830,-500.0,0.0002256,2]
[354959764,1740846560851,-500.0,0.0002256,2]
[354959765,1740846560873,-1893.0843793,0.00022586,2]
[354959766,1740846560894,-108.73050651,0.0002265,2]
[354959767,1740846567116,-391.26949349,0.0002265,2]
[354959768,1740846567137,-414.9952781,0.00022707,2]
[354959769,1740846567159,-158.65,0.00022917,2]
[354959770,1740846567180,-12311.92791434,0.00022927,2]
[354959771,1740846573109,-10660.14751106,0.00022927,2]
[354959772,1740846573130,-158.65,0.00022973,2]
[354959773,1740846573151,-158.65,0.00022973,2]
[354959774,1740846573172,-10000.0,0.00022983,2]
[354959775,1740846573194,-250.0,0.00022993,2]
[354959776,1740846573217,-1071.07187114,0.00023248,2]
[354959777,1740846573241,-640.11411283,0.00023343,2]
[354959778,1740846573262,-158.65,0.00023764,2]
[354959779,1740846573283,-571.36584497,0.00023774,2]
[354959780,1740846574106,-1126.90174045,0.00023774,2]
[354959781,1740846590388,253.28,0.00024,7]
[354959799,1740846632663,-2566.92664085,0.00021674,2]
[354959800,1740846632673,-500.0,0.0002265,2]
[354959801,1740846632683,-500.0,0.0002265,2]
[354959802,1740846632694,-500.0,0.0002265,2]
[354959803,1740846632704,-500.0,0.0002265,2]
[354959804,1740846632713,-500.0,0.0002265,2]
[354959805,1740846632723,-500.0,0.0002265,2]
[354959806,1740846632733,-500.0,0.0002265,2]
[354959807,1740846632743,-770.75196685,0.00023774,2]
[354959808,1740846632754,-151.0,0.00023957,2]
[354959809,1740846632764,-500.0,0.00023957,2]
[354959810,1740846632774,-550.0,0.00023957,2]
[354959811,1740846632788,-605.0,0.00023957,2]
[354959812,1740846632798,-665.5,0.00023957,2]
[354959813,1740846632808,-732.05,0.00023957,2]
[354959814,1740846632819,-805.255,0.00023957,2]
[354959815,1740846632829,-885.7805,0.00023957,2]
[354959816,1740846632839,-974.35855,0.00023957,2]
[354959817,1740846632849,-1071.794405,0.00023957,2]
[354959818,1740846632858,-1000.0,0.00023957,2]
[354959819,1740846632868,-500.0,0.00023973,2]
[354959820,1740846632878,-158.67,0.0002399,2]
[354959821,1740846632887,-158.67,0.0002399,2]
[354959822,1740846632898,-158.67,0.0002399,2]
[354959823,1740846632908,-300.0,0.00023999,2]
[354959824,1740846632918,-807.26814364,0.00024,2]
[354959825,1740846632930,-3314.29308636,0.00024,2]
[354959838,1740846639287,-431.17172215,0.00023999,2]
[354959839,1740846639300,-500.0,0.00023999,2]
[354959840,1740846639310,-500.0,0.00023999,2]
[354959841,1740846639319,-86.43336668,0.00023999,2]
[354959842,1740846639689,-413.56663332,0.00023999,2]
[354959843,1740846639699,-500.0,0.00023999,2]
[354959844,1740846639710,-433.29417254,0.00023999,2]
[354959845,1740846639723,-66.70582746,0.00023999,2]
[354959846,1740846639732,-500.0,0.00023999,2]
[354959847,1740846639742,-500.0,0.00023999,2]
[354959848,1740846639752,-500.0,0.00023999,2]
[354959849,1740846639763,-500.0,0.00023999,2]
[354959850,1740846639773,-400.88401443,0.00023999,2]
[354959851,1740846639785,-99.11598557,0.00023999,2]
[354959852,1740846639797,-500.0,0.00023999,2]
[354959853,1740846639809,-500.0,0.00023999,2]
[354959854,1740846639819,-500.0,0.00023999,2]
[354959855,1740846639830,-500.0,0.00023999,2]
[354959856,1740846639841,-500.0,0.00023999,2]
[354959857,1740846639851,-500.0,0.00023999,2]
[354959859,1740846639861,-500.0,0.00023999,2]
[354959860,1740846639871,-500.0,0.00023999,2]
[354959861,1740846639881,-500.0,0.00023999,2]
[354959862,1740846639891,-500.0,0.00023999,2]
[354959863,1740846639901,-500.0,0.00023999,2]
[354959864,1740846639911,-500.0,0.00023999,2]
[354959865,1740846639920,-500.0,0.00023999,2]
[354959866,1740846639930,-500.0,0.00023999,2]
[354959867,1740846639940,-500.0,0.00023999,2]
[354959868,1740846639950,-500.0,0.00023999,2]
[354959869,1740846639960,-500.0,0.00023999,2]
[354959870,1740846639970,-500.0,0.00023999,2]
[354959872,1740846639980,-500.0,0.00023999,2]
[354959873,1740846639990,-500.0,0.00023999,2]
[354959874,1740846640001,-500.0,0.00023999,2]
[354959875,1740846640012,-500.0,0.00023999,2]
[354959876,1740846640022,-500.0,0.00023999,2]
[354959877,1740846640033,-500.0,0.00023999,2]
[354959878,1740846640044,-500.0,0.00023999,2]
[354959879,1740846640055,-500.0,0.00023999,2]
[354959880,1740846640065,-500.0,0.00023999,2]
[354959881,1740846640080,-500.0,0.00023999,2]
[354959882,1740846640090,-500.0,0.00023999,2]
[354959883,1740846640101,-500.0,0.00023999,2]
[354959884,1740846640111,-500.0,0.00023999,2]
[354959885,1740846640121,-478.8406181,0.00023999,2]
[354959886,1740846640131,-500.0,0.00023999,2]
[354959887,1740846640142,-500.0,0.00023999,2]
[354959888,1740846640152,-500.0,0.00023999,2]
[354959889,1740846640162,-500.0,0.00023999,2]
[354959890,1740846640173,-500.0,0.00023999,2]
[354959891,1740846640183,-110432.31602959,0.00024,2]
[354959892,1740846640193,-504.55378222,0.00024,2]
[354959893,1740846640204,-600.76099855,0.00024,2]
[354959895,1740846640214,-500.0,0.00024,2]
[354959897,1740846640224,-175.33985521,0.00024011,5]
[354959898,1740846640235,-166.1,0.00024505,2]
[354959899,1740846640245,-200.0,0.00024658,2]
[354959900,1740846640256,-500.0,0.00024658,2]
[354959901,1740846640270,-472.2519383,0.00024658,2]
[354959903,1740846640281,-640.11411283,0.00024661,2]
[354959905,1740846640292,-171.687723,0.00025045,2]
[354959907,1740846640302,-182.71,0.00025053,2]
[354959908,1740846640314,-2107.0588245,0.00025225,2]
[354959910,1740846640325,-302.0,0.00025601,2]
[354959911,1740846640337,-184.58281798,0.000257,2]
[354959912,1740846640349,-583.83344062,0.000258,4]
[354959913,1740846640359,-583.8334406,0.000258,4]
[354959914,1740846640369,-583.8334406,0.000259,4]
[354959915,1740846640379,-3284.88244273,0.00025934,2]
[354959916,1740846640390,-260.98744795,0.00025965,2]
[354959917,1740846640401,-640.11411283,0.00025979,2]
[354959919,1740846640411,-420.0,0.00026026,2]
[354959920,1740846640422,-151.0,0.000261,14]
[354959921,1740846640434,-151.0,0.000262,10]
[354959922,1740846640444,-171.687723,0.00026297,2]
[354959923,1740846640455,-151.0,0.000264,19]
[354959924,1740846640465,-253.28,0.000264,7]
[354959925,1740846640476,-151.0,0.000266,17]
[354959926,1740846640486,-2566.92664085,0.00026674,2]
[354959927,1740846640497,-151.0,0.000267,20]
[354959928,1740846640507,-583.8334406,0.000269,4]
[354959929,1740846640517,-151.0,0.000269,19]
[354959930,1740846640527,-151.0,0.00027,20]
[354959931,1740846640537,-151.0,0.000272,14]
[354959933,1740846640549,-500.0,0.00027268,2]
[354959934,1740846640559,-500.0,0.00027268,2]
[354959935,1740846640569,-253.97970672,0.00027268,2]
[354959936,1740846640579,-508.66911428,0.00027268,2]
[354959937,1740846640589,-10815.56406067,0.00027269,2]
[354959938,1740846640599,-640.11411283,0.00027297,2]
[354959939,1740846640609,-162.85000331,0.00027297,2]
[354959940,1740846640619,-500.0,0.00027373,2]
[354959941,1740846640629,-500.0,0.00027373,2]
[354959942,1740846640639,-491.60779993,0.00027373,2]
[354959943,1740846640650,-267.74917364,0.00027373,2]
[354959944,1740846640660,-500.0,0.00027373,2]
[354959945,1740846640670,-505.25202519,0.00027373,2]
[354959946,1740846640681,-500.0,0.00027373,2]
[354959947,1740846640691,-500.0,0.00027373,2]
[354959948,1740846640701,-500.0,0.00027373,2]
[354959949,1740846640711,-25000.0,0.00027397,4]
[354959951,1740846640721,-500.0,0.00027397,2]
[354959952,1740846640731,-500.0,0.00027397,2]
[354959954,1740846640741,-357.93326803,0.00027397,2]
[354959955,1740846640750,-500.0,0.00027397,2]
[354959956,1740846640760,-500.0,0.00027397,2]
[354959957,1740846640770,-500.0,0.00027397,2]
[354959958,1740846640779,-500.0,0.00027397,2]
[354959959,1740846640789,-500.0,0.00027397,2]
[354959960,1740846640802,-500.0,0.00027397,2]
[354959961,1740846640812,-500.0,0.00027397,2]
[354959962,1740846640822,-268.95781264,0.00027397,2]
[354959963,1740846640832,-500.0,0.00027397,2]
[354959964,1740846640843,-504.40130414,0.00027397,2]
[354959965,1740846640853,-500.0,0.00027397,2]
[354959966,1740846640864,-500.0,0.00027397,2]
[354959967,1740846640874,-335.06200885,0.00027397,2]
[354959968,1740846640885,-500.0,0.00027397,2]
[354959969,1740846640895,-500.0,0.00027397,2]
[354959970,1740846640905,-500.0,0.00027397,2]
[354959971,1740846640915,-500.0,0.00027397,2]
[354959972,1740846640926,-500.0,0.00027397,2]
[354959973,1740846640936,-500.0,0.00027397,2]
[354959974,1740846640947,-500.0,0.00027397,2]
[354959975,1740846640957,-500.0,0.00027397,2]
[354959976,1740846640967,-500.0,0.00027397,2]
[354959977,1740846640977,-500.0,0.00027397,2]
[354959978,1740846640988,-500.0,0.00027397,2]
[354959979,1740846640998,-500.0,0.00027397,2]
[354959981,1740846641008,-500.0,0.00027397,2]
[354959982,1740846641019,-500.31372051,0.00027397,2]
[354959983,1740846641029,-500.0,0.00027397,2]
[354959984,1740846641045,-500.0,0.00027397,2]
[354959985,1740846641056,-500.0,0.00027397,2]
[354959986,1740846641066,-500.0,0.00027397,14]
[354959987,1740846641076,-500.0,0.00027397,2]
[354959988,1740846641086,-500.0,0.00027397,2]
[354959989,1740846641096,-500.0,0.00027397,2]
[354959990,1740846641106,-501.46367803,0.00027397,2]
[354959991,1740846641116,-500.0,0.00027397,2]
[354959992,1740846641126,-403.26599901,0.00027397,2]
[354959993,1740846641136,-500.0,0.00027397,2]
[354959994,1740846641146,-500.01773891,0.00027397,2]
[354959995,1740846641155,-500.0,0.00027397,2]
[354959996,1740846641165,-503.83221514,0.00027397,2]
[354959997,1740846641176,-500.0,0.00027397,2]
[354959998,1740846641186,-500.0,0.00027397,2]
[354959999,1740846641196,-500.0,0.00027397,2]
[354960000,1740846641206,-500.0,0.00027397,2]
[354960001,1740846641216,-500.0,0.00027397,2]
[354960002,1740846641226,-500.0,0.00027397,2]
[354960003,1740846641236,-500.0,0.00027397,2]
[354960004,1740846641246,-500.0,0.00027397,2]
[354960005,1740846641257,-500.0,0.00027397,2]
[354960006,1740846641270,-500.0,0.00027397,2]
[354960007,1740846641280,-500.0,0.00027397,2]
[354960008,1740846641292,-500.0,0.00027397,2]
[354960009,1740846641303,-500.0,0.00027397,2]
[354960010,1740846641312,-500.0,0.00027397,2]
[354960011,1740846641322,-500.0,0.00027397,2]
[354960012,1740846641332,-1059.82,0.00027397,2]
[354960013,1740846641345,-500.0,0.00027397,2]
[354960014,1740846641355,-500.0,0.00027397,2]
[354960015,1740846641365,-500.0,0.00027397,2]
[354960016,1740846641375,-500.0,0.00027397,2]
[354960017,1740846641384,-500.0,0.00027397,2]
[354960018,1740846641395,-500.0,0.00027397,2]
[354960019,1740846641404,-500.0,0.00027397,2]
[354960020,1740846641414,-500.0,0.00027397,2]
[354960021,1740846641423,-500.0,0.00027397,2]
[354960022,1740846641434,-505.00300925,0.00027397,2]
[354960023,1740846641444,-500.0,0.00027397,2]
[354960024,1740846641454,-500.0,0.00027397,2]
[354960025,1740846641463,-500.0,0.00027397,2]
[354960026,1740846641472,-500.0,0.00027397,2]
[354960027,1740846641482,-500.0,0.00027397,2]
[354960028,1740846641491,-500.0,0.00027397,2]
[354960029,1740846641501,-500.0,0.00027397,2]
[354960030,1740846641511,-500.0,0.00027397,2]
[354960031,1740846641520,-500.0,0.00027397,2]
[354960032,1740846641529,-500.0,0.00027397,2]
[354960033,1740846641539,-500.0,0.00027397,2]
[354960034,1740846641550,-500.0,0.00027397,2]
[354960035,1740846641559,-500.0,0.00027397,2]
[354960036,1740846641568,-500.0,0.00027397,2]
[354960037,1740846641578,-500.0,0.00027397,2]
[354960038,1740846641589,-500.0,0.00027397,2]
[354960039,1740846641599,-500.0,0.00027397,2]
[354960040,1740846641608,-500.0,0.00027397,2]
[354960041,1740846641617,-500.0,0.00027397,2]
[354960042,1740846641627,-500.0,0.00027397,2]
[354960043,1740846641637,-500.0,0.00027397,2]
[354960044,1740846641648,-500.0,0.00027397,2]
[354960045,1740846641658,-963.19,0.00027397,2]
[354960046,1740846641668,-500.0,0.00027397,2]
[354960047,1740846641678,-555.68,0.00027397,2]
[354960048,1740846641688,-500.0,0.00027397,2]
[354960049,1740846641698,-806.79,0.00027397,2]
[354960050,1740846641707,-500.0,0.00027397,2]
[354960051,1740846641717,-500.0,0.00027397,2]
[354960052,1740846641726,-251.63711037,0.00027397,2]
[354960053,1740846641736,-660.78,0.00027397,2]
[354960054,1740846641745,-660.78,0.00027397,2]
[354960055,1740846641755,-660.78,0.00027397,2]
[354960056,1740846641764,-660.78,0.00027397,2]
[354960057,1740846641775,-660.78,0.00027397,2]
[354960058,1740846641786,-500.0,0.00027397,2]
[354960059,1740846641797,-660.78,0.00027397,2]
[354960060,1740846641807,-660.78,0.00027397,2]
[354960061,1740846641817,-660.78,0.00027397,2]
[354960062,1740846641826,-500.0,0.00027397,2]
[354960063,1740846641836,-660.78,0.00027397,2]
[354960064,1740846641845,-660.78,0.00027397,2]
[354960065,1740846641855,-660.78,0.00027397,2]
[354960066,1740846641864,-660.78,0.00027397,2]
[354960067,1740846641873,-660.78,0.00027397,2]
[354960068,1740846641883,-660.78,0.00027397,2]
[354960069,1740846641893,-500.0,0.00027397,2]
[354960070,1740846641902,-500.0,0.00027397,2]
[354960071,1740846641912,-500.0,0.00027397,2]
[354960072,1740846641921,-500.0,0.00027397,2]
[354960073,1740846641931,-500.0,0.00027397,2]
[354960074,1740846641941,-500.0,0.00027397,2]
[354960075,1740846641950,-500.0,0.00027397,2]
[354960076,1740846641960,-500.0,0.00027397,2]
[354960077,1740846641969,-500.0,0.00027397,2]
[354960078,1740846641979,-500.0,0.00027397,2]
[354960079,1740846641989,-500.0,0.00027397,2]
[354960080,1740846641999,-500.0,0.00027397,2]
[354960081,1740846642009,-500.0,0.00027397,2]
[354960082,1740846642019,-502.19316259,0.00027397,2]
[354960083,1740846642029,-500.0,0.00027397,2]
[354960084,1740846642041,-500.0,0.00027397,2]
[354960085,1740846642052,-500.0,0.00027397,2]
[354960086,1740846642062,-500.0,0.00027397,2]
[354960087,1740846642072,-500.0,0.00027397,2]
[354960088,1740846642082,-500.0,0.00027397,2]
[354960089,1740846642093,-200.0,0.00027397,2]
[354960090,1740846642103,-500.0,0.00027397,2]
[354960091,1740846642113,-501.58502566,0.00027397,2]
[354960092,1740846642123,-504.23838916,0.00027397,2]
[354960093,1740846642133,-500.0,0.00027397,2]
[354960094,1740846642143,-500.0,0.00027397,2]
[354960095,1740846642152,-500.0,0.00027397,2]
[354960096,1740846642162,-500.0,0.00027397,2]
[354960097,1740846642171,-500.0,0.00027397,2]
[354960098,1740846642181,-847.9,0.00027397,2]
[354960099,1740846642191,-500.0,0.00027397,2]
[354960100,1740846642201,-500.0,0.00027397,2]
[354960101,1740846642211,-558.06420154,0.00027397,2]
[354960102,1740846642221,-500.0,0.00027397,2]
[354960103,1740846642230,-500.0,0.00027397,2]
[354960104,1740846642239,-500.0,0.00027397,2]
[354960105,1740846642250,-500.0,0.00027397,2]
[354960106,1740846642260,-625.52,0.00027397,2]
[354960107,1740846642272,-500.0,0.00027397,2]
[354960108,1740846642282,-500.0,0.00027397,2]
[354960109,1740846642292,-500.0,0.00027397,2]
[354960110,1740846642302,-500.0,0.00027397,2]
[354960111,1740846642312,-525.66281093,0.00027397,2]
[354960112,1740846642321,-507.40677207,0.00027397,2]
[354960113,1740846642331,-500.0,0.00027397,2]
[354960114,1740846642342,-752.35,0.00027397,2]
[354960115,1740846642351,-500.0,0.00027397,2]
[354960116,1740846642361,-500.0,0.00027397,2]
[354960117,1740846642371,-500.0,0.00027397,2]
[354960118,1740846642380,-541.86674352,0.00027397,2]
[354960119,1740846642390,-500.0,0.00027397,2]
[354960120,1740846642400,-500.0,0.00027397,2]
[354960121,1740846642409,-500.0,0.00027397,2]
[354960122,1740846642419,-500.0,0.00027397,2]
[354960123,1740846642429,-500.0,0.00027397,2]
[354960124,1740846642439,-587.18,0.00027397,2]
[354960125,1740846642449,-500.0,0.00027397,2]
[354960126,1740846642458,-500.0,0.00027397,2]
[354960127,1740846642469,-500.0,0.00027397,2]
[354960128,1740846642478,-500.0,0.00027397,2]
[354960129,1740846642488,-500.0,0.00027397,2]
[354960130,1740846642498,-500.0,0.00027397,2]
[354960131,1740846642507,-504.88748835,0.00027397,2]
[354960132,1740846642517,-500.0,0.00027397,2]
[354960133,1740846642527,-716.58,0.00027397,2]
[354960134,1740846642536,-511.6614966,0.00027397,2]
[354960135,1740846642547,-500.0,0.00027397,2]
[354960136,1740846642557,-404.01813003,0.00027397,2]
[354960137,1740846642567,-500.0,0.00027397,2]
[354960138,1740846642577,-500.0,0.00027397,2]
[354960139,1740846642586,-500.0,0.00027397,2]
[354960140,1740846642595,-500.0,0.00027397,2]
[354960141,1740846642604,-500.0,0.00027397,2]
[354960142,1740846642614,-500.0,0.00027397,2]
[354960143,1740846642624,-500.0,0.00027397,2]
[354960144,1740846642633,-500.0,0.00027397,2]
[354960145,1740846642643,-500.0,0.00027397,2]
[354960146,1740846642653,-592.03,0.00027397,2]
[354960147,1740846642662,-500.0,0.00027397,2]
[354960148,1740846642672,-500.0,0.00027397,2]
[354960149,1740846642681,-500.0,0.00027397,2]
[354960150,1740846642691,-500.0,0.00027397,2]
[354960151,1740846642701,-500.0,0.00027397,2]
[354960152,1740846642710,-500.0,0.00027397,2]
[354960153,1740846642720,-500.0,0.00027397,2]
[354960154,1740846642729,-500.0,0.00027397,2]
[354960155,1740846642739,-500.0,0.00027397,2]
[354960156,1740846642748,-500.0,0.00027397,2]
[354960157,1740846642758,-500.0,0.00027397,2]
[354960158,1740846642768,-500.0,0.00027397,2]
[354960159,1740846642778,-500.0,0.00027397,2]
[354960160,1740846642787,-556.52,0.00027397,2]
[354960161,1740846642799,-502.15668944,0.00027397,2]
[354960162,1740846642808,-500.0,0.00027397,2]
[354960163,1740846642818,-500.0,0.00027397,2]
[354960164,1740846642827,-500.0,0.00027397,2]
[354960165,1740846642837,-1034.1,0.00027397,2]
[354960166,1740846642846,-500.0,0.00027397,2]
[354960167,1740846642855,-590.98,0.00027397,2]
[354960168,1740846642865,-500.0,0.00027397,2]
[354960169,1740846642874,-500.0,0.00027397,2]
[354960170,1740846642883,-500.0,0.00027397,2]
[354960171,1740846642900,-500.0,0.00027397,2]
[354960172,1740846642909,-500.0,0.00027397,2]
[354960173,1740846642919,-500.0,0.00027397,2]
[354960175,1740846642928,-712.89,0.00027397,2]
[354960176,1740846642938,-500.0,0.00027397,2]
[354960177,1740846642947,-517.46553476,0.00027397,2]
[354960178,1740846642957,-500.0,0.00027397,2]
[354960179,1740846642966,-573.66,0.00027397,2]
[354960180,1740846642976,-508.21567651,0.00027397,2]
[354960181,1740846642985,-500.0,0.00027397,2]
[354960182,1740846642995,-501.75204551,0.00027397,2]
[354960183,1740846643005,-500.0,0.00027397,2]
[354960184,1740846643014,-500.0,0.00027397,2]
[354960187,1740846643024,-500.0,0.00027397,2]
[354960188,1740846643033,-500.0,0.00027397,2]
[354960189,1740846643043,-1089.04,0.00027397,2]
[354960191,1740846643052,-500.0,0.00027397,2]
[354960192,1740846643063,-500.0,0.00027397,2]
[354960194,1740846643073,-500.0,0.00027397,2]
[354960197,1740846643083,-500.0,0.00027397,2]
[354960200,1740846643093,-1123.8,0.00027397,2]
[354960203,1740846643103,-500.0,0.00027397,2]
[354960204,1740846643113,-500.0,0.00027397,2]
[354960206,1740846643123,-500.0,0.00027397,2]
[354960210,1740846643381,-500.0,0.00027397,2]
[354960211,1740846643391,-511.12506657,0.00027397,2]
[354960212,1740846643401,-500.0,0.00027397,2]
[354960213,1740846643411,-500.0,0.00027397,2]
[354960214,1740846643421,-500.0,0.00027397,2]
[354960215,1740846643431,-500.0,0.00027397,2]
[354960216,1740846643441,-500.0,0.00027397,2]
[354960217,1740846643451,-619.73,0.00027397,2]
[354960218,1740846643461,-500.0,0.00027397,2]
[354960219,1740846643471,-500.0,0.00027397,2]
[354960220,1740846643481,-614.57,0.00027397,2]
[354960221,1740846643490,-500.0,0.00027397,2]
[354960222,1740846643500,-500.0,0.00027397,2]
[354960223,1740846643509,-392.22335196,0.00027397,2]
[354960224,1740846643519,-500.0,0.00027397,2]
[354960225,1740846643528,-500.0,0.00027397,2]
[354960226,1740846643538,-833.6,0.00027397,2]
[354960227,1740846643549,-500.0,0.00027397,2]
[354960228,1740846643559,-500.0,0.00027397,2]
[354960229,1740846643568,-500.0,0.00027397,2]
[354960230,1740846643578,-500.0,0.00027397,2]
[354960231,1740846643587,-500.0,0.00027397,2]
[354960232,1740846643597,-500.0,0.00027397,2]
[354960233,1740846643607,-500.0,0.00027397,2]
[354960235,1740846643616,-1025.72,0.00027397,2]
[354960238,1740846643626,-500.0,0.00027397,2]
[354960240,1740846643635,-500.0,0.00027397,2]
[354960242,1740846643645,-500.0,0.00027397,2]
[354960244,1740846643655,-500.0,0.00027397,2]
[354960246,1740846643664,-502.95608307,0.00027397,2]
[354960248,1740846643674,-500.0,0.00027397,2]
[354960250,1740846643683,-500.0,0.00027397,2]
[354960252,1740846643692,-1233.37,0.00027397,2]
[354960254,1740846643702,-500.0,0.00027397,2]
[354960256,1740846643711,-500.0,0.00027397,2]
[354960258,1740846643721,-500.0,0.00027397,2]
[354960260,1740846643730,-500.0,0.00027397,2]
[354960262,1740846643739,-500.0,0.00027397,2]
[354960264,1740846643749,-500.0,0.00027397,2]
[354960265,1740846643759,-706.29,0.00027397,2]
[354960266,1740846643768,-500.0,0.00027397,2]
[354960267,1740846643778,-500.0,0.00027397,2]
[354960268,1740846643787,-500.0,0.00027397,2]
[354960269,1740846643797,-500.0,0.00027397,2]